bitfinex/quotes_ETHUSD_20240716
["timestamp","ask_amount","ask_price","bid_price","bid_amount"]
[1721152404498,2.87819,3474.4,3473.3,0.0552355]
[1721152404791,3.0,3474.3,3473.5,2.87891]
[1721152404999,5.87819,3474.4,3473.5,2.87891]
[1721152405155,5.87819,3474.4,3473.6,0.05523391]
[1721152405464,2.87849,3474.1,3473.6,0.05523232]
[1721152405672,2.87849,3474.1,3472.8,6.91092965]
[1721152405673,2.87858,3474.0,3472.9,2.93461232]
[1721152405999,2.87849,3474.1,3472.9,0.05523232]
[1721152406000,2.87861,3473.9,3472.9,0.05523232]
[1721152406338,1.7,3473.8,3472.9,0.05523232]
[1721152406856,4.5787,3473.8,3472.9,0.05523232]
[1721152407054,2.87856,3474.0,3472.9,2.93463232]
[1721152407256,5.87861,3473.9,3472.9,2.93463232]
[1721152407456,5.87861,3473.9,3472.8,6.91092965]
[1721152407457,5.75747,3473.8,3472.8,6.91092965]
[1721152407701,2.8787,3473.8,3472.9,0.00883666]
[1721152408197,2.8787,3473.8,3472.9,0.05524345]
[1721152408566,1.7,3473.5,3472.9,0.05524345]
[1721152408764,1.7,3473.5,3472.5,0.05524345]
[1721152408765,2.87923,3473.2,3472.5,0.05524345]
[1721152409080,2.87908,3473.4,3472.5,0.05524345]
[1721152409607,2.87916,3473.3,3472.5,0.05524345]
[1721152409751,4.57897,3473.5,3472.5,0.05524345]
[1721152409951,2.87904,3473.4,3472.5,0.05524345]
[1721152410396,2.87915,3473.3,3472.4,9.79076965]
[1721152410579,1.7,3473.5,3472.4,9.79076965]
[1721152410778,2.87902,3473.4,3472.4,9.79076965]
[1721152410996,5.75812,3473.4,3472.4,9.79076965]
[1721152411155,2.87902,3473.4,3472.5,0.02212003]
[1721152411356,2.87914,3473.3,3472.5,0.02212003]
[1721152411556,2.87914,3473.3,3472.4,6.91092965]
[1721152411952,4.57899,3473.5,3472.5,2.87975]
[1721152412195,2.87899,3473.5,3472.5,2.90187012]
[1721152412398,2.87878,3473.7,3472.7,2.87959]
[1721152412904,2.87878,3473.7,3472.8,0.02211821]
[1721152413194,2.87878,3473.7,3472.6,2.276]
[1721152413195,2.87896,3473.5,3472.6,2.276]
[1721152413393,2.87896,3473.5,3472.8,0.0044215]
[1721152413759,2.87896,3473.5,3472.7,0.00486196]
[1721152413971,2.87878,3473.7,3472.7,2.88446196]
[1721152414310,2.87878,3473.7,3472.7,3.68847716]
[1721152414672,4.57864,3473.9,3472.9,2.87942]
[1721152414879,5.8787,3473.8,3473.0,0.00487638]
[1721152415133,5.8787,3473.8,3473.0,0.00487377]
[1721152415306,5.8787,3473.8,3472.7,3.6835652]
[1721152415307,5.8787,3473.8,3472.8,0.02579805]
[1721152415505,3.0,3473.8,3472.8,0.02579805]
[1721152415712,2.87895,3473.5,3472.7,0.02998385]
[1721152416408,1.7,3473.9,3472.7,0.02998385]
[1721152416409,2.87882,3473.7,3472.7,0.02998385]
[1721152416586,1.7,3473.9,3472.7,0.02998385]
[1721152416913,2.87879,3473.7,3472.8,2.8795]
[1721152417128,2.87879,3473.7,3472.6,5.15566]
[1721152417129,2.87889,3473.6,3472.9,0.0308217]
[1721152417411,2.87908,3473.4,3472.6,2.276]
[1721152417570,2.87889,3473.6,3472.6,2.276]
[1721152417571,2.87896,3473.5,3472.7,0.05524822]
[1721152417770,2.87896,3473.5,3472.7,0.05524663]
[1721152418017,5.75797,3473.5,3472.7,0.05524663]
[1721152418188,2.87906,3473.4,3472.7,0.05524663]
[1721152418775,2.87912,3473.3,3472.7,0.05524663]
[1721152418980,2.87924,3473.2,3472.7,0.05524663]
[1721152419179,2.87924,3473.2,3472.1,5.18817]
[1721152419180,2.87935,3473.0,3472.2,0.05524663]
[1721152422310,5.75878,3473.0,3472.2,0.05524663]
[1721152422512,2.87935,3473.0,3472.2,0.05524663]
[1721152422707,2.8797,3472.6,3472.2,0.05524663]
[1721152422910,2.8797,3472.6,3471.8,0.05525459]
[1721152423132,2.87977,3472.5,3471.8,0.05525459]
[1721152424313,2.87986,3472.4,3471.8,0.05525459]
[1721152425055,2.87994,3472.3,3471.8,0.05525459]
[1721152425349,2.88011,3472.1,3471.6,2.2529]
[1721152425651,2.88011,3472.1,3471.8,0.05526255]
[1721152425849,2.88011,3472.1,3471.7,0.05526095]
[1721152426456,2.88011,3472.1,3471.3,0.05526255]
[1721152427035,2.88002,3472.2,3471.3,0.05526255]
[1721152427240,2.87979,3472.5,3471.3,0.05526255]
[1721152427449,3.0,3472.4,3471.5,2.88059]
[1721152427768,3.0,3472.4,3471.7,2.3608]
[1721152427919,3.0,3472.4,3471.8,0.05526255]
[1721152428119,2.87961,3472.7,3471.8,0.05526095]
[1721152428453,5.87968,3472.6,3471.8,0.05526095]
[1721152429371,3.0,3472.6,3471.8,0.05526095]
[1721152429676,2.87944,3472.9,3471.8,0.05526095]
[1721152429677,2.87965,3472.7,3471.9,0.90025232]
[1721152429821,3.0,3472.8,3472.0,0.05525936]
[1721152430022,1.80738454,3473.1,3472.1,2.8801]
[1721152430275,1.27,3473.2,3472.3,5.34761]
[1721152430557,1.27,3473.2,3472.4,0.055253]
[1721152430760,1.27,3473.2,3472.4,0.05525141]
[1721152432525,1.27,3473.2,3472.3,6.41979062]
[1721152432766,1.27,3473.2,3472.4,0.04419957]
[1721152433769,4.1492,3473.2,3472.4,0.04419957]
[1721152434653,4.1492,3473.2,3472.3,2.4677]
[1721152434854,4.1492,3473.2,3472.4,0.00707223]
[1721152435670,4.1492,3473.2,3472.4,0.02899952]
[1721152436833,2.87936,3473.0,3472.4,0.02899952]
[1721152437632,2.87953,3472.8,3472.4,0.02899952]
[1721152437871,2.87953,3472.8,3472.0,0.02903005]
[1721152438073,2.87971,3472.6,3472.0,0.02903005]
[1721152438587,2.87977,3472.5,3472.0,0.02902137]
[1721152438753,2.87977,3472.5,3471.7,0.03087178]
[1721152439067,2.87977,3472.5,3471.6,9.21972965]
[1721152439381,2.87977,3472.5,3471.7,0.03184319]
[1721152439734,2.87986,3472.4,3471.7,0.03184319]
[1721152440486,4.68735909,3472.8,3471.7,2.91222319]
[1721152440777,3.0,3472.7,3471.8,2.8803]
[1721152441084,3.0,3472.7,3472.0,2.88016]
[1721152441238,7.68725909,3472.9,3472.1,0.05525777]
[1721152441442,7.68725909,3472.9,3471.9,2.88022]
[1721152441640,2.87961,3472.7,3471.8,2.88031]
[1721152441883,2.87961,3472.7,3471.7,0.05525618]
[1721152442084,2.87961,3472.7,3471.9,0.05526095]
[1721152442381,2.87961,3472.7,3471.8,2.93560936]
[1721152442858,2.87961,3472.7,3471.8,0.05525936]
[1721152443051,2.87979,3472.5,3471.8,0.05525936]
[1721152443299,4.57985,3472.4,3471.7,0.05526095]
[1721152443447,2.88001,3472.2,3471.7,0.05526095]
[1721152443657,2.88001,3472.2,3471.3,0.05526255]
[1721152444302,4.68830136,3472.2,3471.3,0.05526255]
[1721152445296,2.88025,3472.0,3471.3,0.05526255]
[1721152445459,2.8804,3471.8,3471.3,0.05526255]
[1721152446356,2.88026,3471.9,3471.3,0.05526255]
[1721152446970,4.80865511,3472.1,3471.3,0.05526255]
[1721152447167,3.0,3472.1,3471.4,0.25340626]
[1721152447371,3.0,3472.1,3471.5,0.05526732]
[1721152447615,3.0,3472.3,3471.5,0.05526573]
[1721152447795,3.0,3472.3,3471.4,0.05526573]
[1721152448704,3.0,3472.3,3471.4,2.93593573]
[1721152449079,3.0,3472.3,3471.5,2.88054]
[1721152449300,4.57953,3472.8,3471.5,2.88054]
[1721152449301,1.80865511,3472.5,3471.7,2.88042]
[1721152449488,1.80865511,3472.5,3471.8,0.05526255]
[1721152449689,3.0,3472.7,3471.8,0.05526095]
[1721152449976,1.80902571,3472.5,3471.8,0.05526095]
[1721152450373,1.80902571,3472.5,3471.9,2.2529]
[1721152450675,1.80902571,3472.5,3472.0,0.05525936]
[1721152450900,1.80902571,3472.5,3472.0,0.05525777]
[1721152451117,2.87985,3472.4,3472.0,0.05525777]
[1721152451321,4.68887571,3472.4,3471.6,0.05525777]
[1721152451475,2.87994,3472.3,3471.6,0.05525777]
[1721152451676,2.87994,3472.3,3471.5,0.05526414]
[1721152451877,4.68896571,3472.3,3471.5,0.05526414]
[1721152453225,4.6899984,3472.3,3471.5,0.05526414]
[1721152454894,1.8100584,3472.3,3471.5,0.05526414]
[1721152455503,5.75978,3472.4,3471.5,0.05526414]
[1721152455714,1.81050271,3472.3,3471.5,0.05526414]
[1721152455919,1.81050271,3472.2,3471.5,0.05526414]
[1721152456281,1.81050117,3472.2,3471.5,0.05526414]
[1721152461436,1.81091331,3472.2,3471.7,0.05526291]
[1721152461605,1.81091331,3472.2,3471.5,2.88059]
[1721152461792,1.81091331,3472.2,3471.3,0.05526291]
[1721152461993,1.81091331,3472.2,3471.4,5.76127]
[1721152462194,4.57988,3472.4,3471.4,5.76127]
[1721152462195,1.81091331,3472.1,3471.5,0.05526769]
[1721152462396,1.81091331,3472.1,3471.5,0.05526609]
[1721152462629,1.81172108,3472.0,3471.5,0.05526609]
[1721152462797,1.81172108,3472.0,3471.3,0.05526609]
[1721152462798,1.81172108,3471.9,3471.3,0.05526609]
[1721152463129,1.81172108,3471.6,3471.3,0.05526609]
[1721152463315,1.81172108,3471.6,3471.0,0.05526928]
[1721152464622,1.81172108,3471.5,3471.0,0.05526928]
[1721152465834,1.81222091,3471.5,3471.0,0.05526928]
[1721152468028,1.81222091,3471.3,3471.0,0.05526928]
[1721152468329,1.81222091,3471.2,3471.0,0.05526928]
[1721152468707,1.81222091,3471.2,3470.4,2.2674]
[1721152468907,1.8119705,3471.2,3471.0,0.05527565]
[1721152469107,1.8119705,3471.2,3470.4,2.2674]
[1721152469311,1.8119705,3471.2,3470.5,0.05528361]
[1721152469512,1.8119705,3471.2,3470.5,0.05528202]
[1721152470812,1.8119705,3471.3,3470.5,0.05528202]
[1721152471006,1.8119705,3471.4,3470.5,0.57569522]
[1721152471624,4.6925705,3471.5,3470.5,3.45710522]
[1721152471921,1.8119705,3471.6,3471.0,2.88093]
[1721152472121,1.81062356,3471.9,3471.1,3.45435705]
[1721152472324,1.81062356,3472.0,3471.2,0.05527246]
[1721152472630,1.81062356,3472.0,3471.2,2.93611087]
[1721152473037,1.81062356,3472.0,3471.2,0.05527087]
[1721152473849,1.81062356,3472.0,3471.2,2.93611087]
[1721152474044,1.81062356,3472.0,3471.2,3.81353626]
[1721152475117,3.0,3472.1,3471.2,3.81353626]
[1721152475322,1.81036539,3472.0,3471.2,3.81353626]
[1721152476153,1.81036539,3472.0,3471.2,0.93269626]
[1721152476347,1.81036539,3472.0,3471.2,0.05527087]
[1721152476553,1.81036539,3472.0,3471.0,2.88096]
[1721152477150,1.81036539,3472.0,3471.1,0.05527405]
[1721152477468,1.7,3471.8,3471.1,0.05527246]
[1721152477624,1.7,3471.8,3470.9,0.05527246]
[1721152477832,3.51036539,3471.8,3470.9,0.05527246]
[1721152478569,6.39158392,3471.8,3470.9,0.05527246]
[1721152480059,1.81123392,3471.8,3471.0,2.88094]
[1721152480233,1.81123392,3471.8,3471.2,5.29834]
[1721152480445,1.81123392,3471.9,3471.4,2.8806]
[1721152480649,1.81123392,3472.0,3471.5,0.05526769]
[1721152480849,1.81123392,3472.0,3471.5,0.05526609]
[1721152481585,1.81123392,3472.0,3471.2,5.29831]
[1721152481586,1.81232692,3471.9,3471.3,0.05526609]
[1721152482152,1.81232692,3471.9,3471.3,2.93600609]
[1721152483146,1.81232692,3471.9,3471.3,5.81669609]
[1721152483352,1.81232692,3471.8,3471.3,6.6401157]
[1721152483883,1.81232692,3471.8,3471.4,2.88067]
[1721152484184,1.81232692,3471.8,3471.5,0.05526769]
[1721152484391,1.81232692,3471.7,3471.5,0.05526609]
[1721152484686,3.0,3472.0,3471.5,0.05526609]
[1721152484887,1.81351649,3471.7,3471.6,0.05526609]
[1721152485085,4.7,3472.3,3471.5,2.88052]
[1721152485086,1.81351649,3471.8,3471.5,2.88052]
[1721152485248,1.81351649,3471.9,3471.6,0.05526609]
[1721152485452,1.81351649,3471.9,3471.6,0.0552645]
[1721152486145,1.81351649,3471.9,3471.6,2.9357645]
[1721152487392,2.11576924,3472.6,3472.2,2.438]
[1721152487550,2.11576924,3473.4,3472.9,2.87935]
[1721152487748,2.87856,3474.0,3473.0,0.05524381]
[1721152487950,2.11513057,3473.6,3473.0,0.05524222]
[1721152488251,1.7,3473.4,3473.0,0.05524222]
[1721152488453,4.99425057,3473.3,3472.6,0.05524222]
[1721152488651,2.11513057,3473.1,3472.4,0.05524859]
[1721152488883,2.11513057,3473.0,3472.4,0.05524859]
[1721152489055,2.87912,3473.3,3472.4,0.05524859]
[1721152489056,3.0,3473.2,3472.4,0.05524859]
[1721152489388,2.11458285,3473.0,3472.4,0.05524859]
[1721152489556,1.7,3472.9,3472.4,0.05524859]
[1721152489889,1.7,3472.9,3472.3,0.05525177]
[1721152490086,3.81458285,3472.9,3472.0,2.93538336]
[1721152490253,1.7,3472.9,3472.1,2.88009]
[1721152490449,1.7,3472.9,3472.0,2.93538336]
[1721152490450,4.7,3472.9,3472.2,0.05525654]
[1721152490652,3.81403911,3472.9,3471.9,0.05525495]
[1721152490951,2.11411609,3472.8,3471.9,0.05525495]
[1721152491184,2.87961,3472.7,3471.9,0.05525495]
[1721152492068,4.9938178,3472.5,3471.9,0.05525495]
[1721152492276,2.87993,3472.3,3471.5,0.05525973]
[1721152492485,2.87993,3472.3,3471.3,2.3414]
[1721152492486,4.9939178,3472.3,3471.4,0.05526609]
[1721152492656,4.99432125,3472.3,3471.4,0.05526609]
[1721152493166,2.87993,3472.3,3471.4,0.05526609]
[1721152493361,1.81227187,3472.1,3471.4,0.05526609]
[1721152493558,2.87993,3472.3,3471.4,0.05526609]
[1721152493559,1.81227187,3472.0,3471.4,0.05526609]
[1721152494102,2.87993,3472.3,3471.4,0.05526609]
[1721152494305,1.81228332,3472.0,3471.4,0.05526609]
[1721152494803,1.81228332,3471.8,3471.4,0.05526609]
[1721152494995,1.81228332,3471.6,3471.1,0.05526769]
[1721152495513,1.81228332,3471.6,3470.9,0.05527246]
[1721152495801,1.81228332,3471.6,3470.9,2.93635246]
[1721152496010,1.81228332,3471.6,3470.9,4.68246667]
[1721152497503,3.51248516,3471.5,3470.9,0.05527246]
[1721152497701,1.81248516,3471.4,3470.9,0.05527246]
[1721152497914,1.81248516,3471.3,3470.9,0.05527246]
[1721152498526,1.81248516,3471.3,3470.7,0.05527565]
[1721152498928,1.81248516,3471.4,3470.7,0.05527565]
[1721152499503,1.81248516,3471.3,3470.7,0.05527565]
[1721152500203,1.7,3471.5,3470.7,0.05527565]
[1721152500204,1.81243189,3471.2,3470.7,0.05527565]
[1721152500447,1.81243189,3471.1,3470.5,0.05527883]
[1721152500625,1.81223482,3471.0,3470.5,0.05527883]
[1721152500824,1.81223482,3470.9,3470.5,0.05527883]
[1721152501536,1.81223482,3470.9,3470.3,0.05528202]
[1721152501753,1.81223482,3471.0,3470.3,0.50368593]
[1721152501919,1.81223482,3470.9,3470.3,0.50368593]
[1721152502254,1.81223482,3471.0,3470.3,0.50368593]
[1721152502610,1.81223482,3471.0,3470.4,2.8815]
[1721152502848,1.81223482,3471.0,3470.5,0.05528361]
[1721152503135,1.81223482,3471.0,3470.5,0.05528202]
[1721152503835,1.81150963,3471.0,3470.5,0.05528202]
[1721152504008,1.81150963,3471.0,3470.4,0.05528202]
[1721152504215,1.81150963,3471.0,3470.3,0.05528361]
[1721152504646,1.81150963,3471.0,3470.2,0.0552852]
[1721152506158,1.7,3470.6,3470.2,0.0552852]
[1721152506453,1.7,3470.6,3470.1,0.0552868]
[1721152507227,1.8109199,3471.0,3470.1,0.58089748]
[1721152507818,4.6919299,3471.0,3470.1,0.58089748]
[1721152508041,3.0,3470.9,3470.1,0.58089748]
[1721152509463,5.88109,3470.9,3470.1,0.58089748]
[1721152509626,1.7,3470.8,3470.1,0.0552868]
[1721152509834,3.5109199,3470.8,3470.1,0.0552868]
[1721152510074,3.51014897,3470.8,3470.1,0.0552868]
[1721152510933,1.7,3470.4,3470.1,0.0552868]
[1721152511351,1.7,3470.4,3469.7,0.05528908]
[1721152512307,2.88121,3470.8,3469.7,2.93732908]
[1721152512308,2.88127,3470.7,3469.7,2.93732908]
[1721152512606,4.69141897,3470.7,3469.7,2.93732908]
[1721152512765,4.69141897,3470.7,3469.7,0.05528908]
[1721152512766,2.88135,3470.6,3469.7,0.05528908]
[1721152512970,1.7,3470.4,3469.7,0.05528908]
[1721152513361,1.7,3470.4,3469.7,2.93737908]
[1721152514093,4.69053582,3470.7,3469.7,2.93737908]
[1721152514297,3.50921582,3470.8,3469.8,4.62935587]
[1721152514497,4.58123,3470.8,3469.9,0.05529386]
[1721152514787,4.58123,3470.8,3469.9,0.05529227]
[1721152515163,2.88128,3470.7,3469.9,0.05529227]
[1721152515370,4.80921582,3470.9,3469.9,1.00157617]
[1721152515710,2.88128,3470.7,3470.0,2.4245]
[1721152515855,2.88128,3470.7,3470.1,0.05529068]
[1721152516190,2.88128,3470.7,3470.1,0.05528908]
[1721152517201,3.50799557,3470.8,3470.1,0.05528908]
[1721152517604,4.58119,3470.8,3470.1,0.05528908]
[1721152519116,2.88126,3470.7,3470.1,0.05528908]
[1721152519320,2.88126,3470.7,3469.9,0.05528908]
[1721152519995,2.88126,3470.7,3469.8,0.05529227]
[1721152520205,6.38895655,3470.8,3469.8,0.05529227]
[1721152520206,2.88134,3470.6,3469.8,0.05529227]
[1721152520712,1.7,3470.3,3469.8,0.05529227]
[1721152520910,1.7,3470.3,3469.7,0.05529386]
[1721152521100,1.7,3470.3,3469.6,0.05529546]
[1721152522323,2.88169,3470.2,3469.2,0.05529705]
[1721152522962,2.88189,3470.0,3469.2,0.05529705]
[1721152526024,1.7,3469.9,3469.2,0.05529705]
[1721152526335,4.58192,3469.9,3469.2,0.05529705]
[1721152526827,1.7,3469.4,3469.2,0.05529705]
[1721152527032,1.7,3469.4,3468.9,0.05530343]
[1721152527033,2.88253,3469.2,3468.9,0.05530343]
[1721152527245,2.88253,3469.2,3468.7,0.05531299]
[1721152527413,5.76511,3469.2,3469.0,0.05530821]
[1721152527729,5.76511,3469.2,3468.6,2.3163]
[1721152528040,2.8826,3469.1,3468.7,0.05531299]
[1721152528329,4.58268,3469.0,3468.7,0.0553114]
[1721152528643,4.58268,3469.0,3468.2,9.18982965]
[1721152528644,2.88285,3468.8,3468.3,0.0553114]
[1721152528996,2.88285,3468.8,3467.9,0.05531778]
[1721152529196,2.88302,3468.6,3467.9,0.05531778]
[1721152529429,2.88302,3468.6,3467.9,1.08541278]
[1721152530539,2.88285,3468.8,3467.9,1.08541278]
[1721152530697,2.88292,3468.7,3467.9,1.08541278]
[1721152531801,1.7,3468.6,3467.9,1.08541278]
[1721152532131,1.7,3468.6,3467.9,0.05531778]
[1721152532296,4.58301,3468.6,3467.9,0.05531778]
[1721152532753,1.7,3468.2,3467.9,0.05531778]
[1721152532899,1.7,3468.2,3467.2,2.88415]
[1721152532900,1.7,3468.2,3467.7,0.05532416]
[1721152533097,2.88347,3468.1,3467.4,0.05532735]
[1721152533736,1.7,3468.2,3467.4,0.05532735]
[1721152534034,4.58334,3468.2,3467.4,0.05532735]
[1721152534602,1.7,3468.2,3467.4,0.05532735]
[1721152535809,4.7,3468.7,3467.6,2.88382]
[1721152536027,3.0,3468.6,3467.7,0.05532895]
[1721152536246,3.0,3468.6,3467.7,0.05532735]
[1721152536547,1.7,3468.7,3467.8,2.4844]
[1721152536833,4.58292,3468.7,3467.9,0.05532575]
[1721152537043,3.0,3468.6,3467.9,0.05532416]
[1721152538043,5.88301,3468.6,3467.9,0.05532416]
[1721152538560,1.7,3468.3,3467.9,0.05532416]
[1721152538709,1.7,3468.3,3467.3,2.53972416]
[1721152538911,2.88335,3468.2,3467.3,2.53972416]
[1721152539452,1.7,3467.9,3467.3,2.53972416]
[1721152539651,4.58363,3467.9,3467.3,0.05532416]
[1721152540418,1.7,3467.9,3467.3,0.05532416]
[1721152543224,1.7,3467.9,3467.2,0.05533373]
[1721152544043,4.58359,3467.9,3467.0,0.05533533]
[1721152544657,4.58359,3467.9,3467.0,2.93966533]
[1721152544861,1.7,3467.9,3467.0,3.48207186]
[1721152545153,1.7,3467.9,3467.1,2.88421]
[1721152545327,1.7,3467.9,3467.2,0.05533692]
[1721152545530,1.7,3467.9,3467.2,0.05533533]
[1721152551461,3.0,3468.1,3467.2,0.05533533]
[1721152551661,4.58331,3468.3,3467.3,2.88401]
[1721152551826,3.0,3468.2,3467.4,0.05533373]
[1721152552026,3.0,3468.2,3467.4,0.05533214]
[1721152552760,3.0,3468.2,3467.4,2.93930214]
[1721152552962,3.0,3468.2,3467.5,3.46618121]
[1721152553188,3.0,3468.5,3467.6,2.93911054]
[1721152553503,1.7,3468.2,3467.7,0.05532895]
[1721152553665,1.7,3468.2,3467.6,2.93911735]
[1721152553990,3.0,3468.5,3467.7,2.88374]
[1721152554191,3.0,3468.5,3467.8,0.05531563]
[1721152555355,1.7,3468.6,3467.8,0.05531563]
[1721152555560,1.28,3468.8,3468.2,2.88333]
[1721152555759,7.35,3469.6,3468.5,2.3052]
[1721152556065,1.7,3469.8,3469.0,2.88264]
[1721152556267,1.7,3469.8,3469.1,0.05530662]
[1721152556594,1.7,3469.8,3469.1,0.05530502]
[1721152556899,2.3163,3469.9,3469.1,0.05530502]
[1721152556900,1.7,3469.2,3469.1,0.05530502]
[1721152557052,1.7,3469.2,3468.9,0.05530502]
[1721152557255,1.7,3469.2,3468.6,2.93830821]
[1721152557559,1.7,3469.2,3468.7,0.0548119]
[1721152557792,1.7,3469.2,3468.6,2.883]
[1721152557793,1.7,3469.2,3468.8,0.05480767]
[1721152557972,1.7,3469.2,3468.6,2.883]
[1721152557973,1.7,3469.2,3468.7,0.05480763]
[1721152559994,3.0,3469.5,3468.9,2.88271]
[1721152560215,2.88185,3470.0,3468.7,0.86742439]
[1721152560216,2.319,3470.3,3469.4,2.88228]
[1721152560358,2.319,3470.3,3469.5,2.93754024]
[1721152560554,2.319,3470.3,3469.6,0.05529865]
[1721152560791,1.7,3470.0,3469.6,0.05529705]
[1721152561168,1.7,3470.0,3469.5,0.05529705]
[1721152561368,1.7,3469.6,3469.5,0.05529705]
[1721152561596,1.7,3469.6,3468.6,9.79391965]
[1721152561817,1.7,3469.6,3468.5,2.88307]
[1721152562007,1.7,3469.6,3469.1,0.05530662]
[1721152562205,1.7,3469.6,3468.7,2.88291]
[1721152562515,1.7,3469.6,3468.6,0.05530502]
[1721152562676,1.7,3469.6,3469.1,2.88257]
[1721152562860,3.0,3470.0,3469.3,2.2544]
[1721152563061,3.0,3470.3,3469.5,2.88217]
[1721152563378,3.0,3470.3,3469.6,2.93744865]
[1721152563590,1.27,3470.4,3469.6,2.93744865]
[1721152563591,1.27,3470.4,3469.7,0.05529705]
[1721152563774,1.27,3470.4,3469.7,0.05529546]
[1721152564266,4.27,3470.4,3469.7,0.05529546]
[1721152565211,7.15152,3470.4,3469.7,0.05529546]
[1721152565497,7.15152,3470.4,3469.5,2.93748546]
[1721152566468,4.27,3470.4,3469.6,2.88216]
[1721152566701,4.27,3470.4,3469.7,0.05529768]
[1721152566899,4.27,3470.4,3469.7,0.05529608]
[1721152567302,1.27,3470.4,3469.7,0.05529608]
[1721152567601,3.0,3470.6,3469.8,2.88194]
[1721152567774,3.0,3470.8,3469.9,0.05529449]
[1721152567979,3.0,3470.8,3469.9,2.9371929]
[1721152568181,4.7,3470.9,3470.0,2.88182]
[1721152568501,3.0,3470.8,3470.2,2.88159]
[1721152568675,3.0,3470.8,3470.3,0.05528812]
[1721152568875,1.7,3470.9,3470.3,0.05528652]
[1721152569094,5.25413,3470.8,3470.3,0.05528652]
[1721152569420,1.7,3470.0,3469.4,2.93756652]
[1721152569709,1.7,3470.0,3469.4,0.05528652]
[1721152570082,2.3586,3469.9,3469.4,0.05528652]
[1721152570288,1.7,3469.3,3469.1,0.05530086]
[1721152570612,1.7,3469.3,3468.4,2.2921]
[1721152570904,1.7,3469.3,3468.6,0.02714865]
[1721152571107,1.7,3469.3,3468.4,0.05531362]
[1721152571278,4.7,3469.3,3468.4,2.93848362]
[1721152571470,4.7,3469.3,3468.5,2.88308]
[1721152571667,3.0,3469.5,3468.7,2.88285]
[1721152571874,3.0,3469.6,3468.8,2.93814202]
[1721152572071,1.7,3469.7,3468.9,0.05531043]
[1721152572306,1.7,3469.7,3468.9,0.05530883]
[1721152573467,4.5821,3469.7,3468.9,0.05530883]
[1721152573721,4.5821,3469.7,3468.8,0.05530883]
[1721152574004,3.0,3469.6,3468.8,0.05530883]
[1721152574217,5.88219,3469.6,3468.8,0.05530883]
[1721152574419,1.7,3469.3,3468.8,0.05530883]
[1721152574586,1.7,3469.3,3468.7,0.05531043]
[1721152575189,3.0,3469.6,3468.8,2.88283]
[1721152575487,1.7,3469.7,3468.9,0.05531043]
[1721152575692,1.7,3469.7,3468.9,0.05530883]
[1721152575898,4.7,3469.7,3468.9,0.05530883]
[1721152576220,4.7,3469.7,3469.0,2.88265]
[1721152576392,1.7,3469.7,3469.1,0.05530724]
[1721152576593,1.7,3469.7,3469.1,0.05530565]
[1721152578699,1.7,3469.7,3469.1,2.93789565]
[1721152579736,1.7,3469.7,3469.1,0.05530565]
[1721152580037,1.7,3469.7,3467.3,3.62789402]
[1721152580038,4.58242,3469.3,3468.8,0.05530565]
[1721152580320,2.88252,3469.2,3468.4,0.05531043]
[1721152581299,1.7,3469.3,3468.4,0.05531043]
[1721152581500,4.58246,3469.3,3468.4,3.52062647]
[1721152582633,1.7,3469.3,3468.4,3.52062647]
[1721152583545,4.58245,3469.3,3468.4,0.63748647]
[1721152583695,1.7,3469.3,3468.4,3.52060647]
[1721152583901,1.7,3469.3,3468.7,2.88287]
[1721152584107,1.7,3469.3,3468.8,0.05531202]
[1721152584432,1.7,3469.3,3468.8,0.05531043]
[1721152585610,1.7,3469.3,3468.8,2.93813043]
[1721152586535,1.7,3469.3,3468.8,0.05531043]
[1721152586698,1.7,3469.3,3468.7,2.93822043]
[1721152587523,1.7,3469.3,3468.7,0.05531043]
[1721152587832,1.7,3469.3,3468.6,2.88294]
[1721152588039,1.7,3469.3,3468.8,2.88283]
[1721152588258,3.0,3469.5,3469.0,2.88264]
[1721152588536,1.80731327,3469.6,3469.0,2.88264]
[1721152588537,4.80731327,3469.7,3469.1,0.05530724]
[1721152588707,4.80731327,3469.7,3469.1,0.05530565]
[1721152589035,3.0,3469.7,3469.1,0.05530565]
[1721152589243,1.80807641,3469.7,3469.1,0.05530565]
[1721152589533,1.80807641,3469.6,3469.1,0.05530565]
[1721152589720,4.80807641,3469.6,3468.9,0.05530565]
[1721152589913,3.0,3469.6,3468.9,0.05530565]
[1721152590117,4.80807641,3469.7,3468.9,0.05530565]
[1721152590305,1.80807641,3469.6,3469.0,2.88266]
[1721152590507,4.80807641,3469.6,3469.1,0.05530724]
[1721152590713,4.80807641,3469.6,3469.1,0.05530565]
[1721152590951,1.80807641,3469.6,3469.1,0.05530565]
[1721152592415,1.80807641,3469.5,3469.1,0.05530565]
[1721152593152,1.80807641,3469.5,3468.9,0.05530565]
[1721152593356,4.69038641,3469.5,3468.9,0.05530565]
[1721152593565,1.80807641,3469.3,3468.9,0.05530565]
[1721152593716,1.80807641,3469.2,3468.9,0.05530565]
[1721152594062,1.80807641,3469.3,3468.8,0.05530883]
[1721152594212,1.80807641,3469.2,3468.8,0.05530883]
[1721152594415,1.80807641,3469.3,3468.8,0.05530883]
[1721152594614,1.80807641,3469.3,3468.5,2.88308]
[1721152594615,1.80807641,3469.2,3468.6,0.05531043]
[1721152595361,1.7,3469.3,3468.6,0.05531043]
[1721152595524,1.81129672,3469.1,3468.6,0.05531043]
[1721152595927,1.81129672,3469.2,3468.6,0.05531043]
[1721152596324,1.81129672,3469.1,3468.6,0.05531043]
[1721152597055,1.81129672,3469.1,3468.6,2.93830043]
[1721152597254,1.81129672,3469.1,3468.7,0.58214304]
[1721152597559,1.81129672,3469.1,3468.8,0.05531202]
[1721152597756,1.81129672,3469.1,3468.8,0.05531043]
[1721152598180,1.7,3469.3,3469.0,2.88267]
[1721152598334,1.7,3469.3,3468.4,2.88317]
[1721152598335,4.19619329,3469.3,3469.1,0.05530724]
[1721152598528,7.79734329,3469.2,3468.0,6.91092965]
[1721152598737,7.79734329,3469.2,3468.5,0.05531681]
[1721152598738,2.11603769,3468.8,3468.5,0.05531681]
[1721152598968,2.11603769,3468.8,3468.0,2.93878521]
[1721152599154,1.8137599,3468.4,3468.0,2.93874521]